[Event "*** SCC Grand Prix: Titled Tuesday Blitz"]
[Site "Chess.com"]
[Date "2020.08.11"]
[Round "10"]
[White "Nafania1"]
[Black "Susal_De_Silva"]
[Result "0-1"]
[WhiteElo "2449"]
[BlackElo "2354"]
[TimeControl "180+1"]
[EndTime "11:57:37 PDT"]
[Termination "Susal_De_Silva won by resignation"]

1. e4 {[%clk 0:03:00.9]} 1... e5 {[%clk 0:03:00]} 2. Nf3 {[%clk 0:03:00.5]} 2...
d6 {[%clk 0:03:00.4]} 3. Bc4 {[%clk 0:03:00]} 3... Be7 {[%clk 0:03:00.4]} 4. O-O
{[%clk 0:02:59]} 4... Nf6 {[%clk 0:03:00.4]} 5. Re1 {[%clk 0:02:59.2]} 5... O-O
{[%clk 0:03:00.4]} 6. d3 {[%clk 0:02:58.5]} 6... c6 {[%clk 0:03:00.6]} 7. Bb3
{[%clk 0:02:58.5]} 7... a5 {[%clk 0:03:00.7]} 8. a3 {[%clk 0:02:55.1]} 8... Na6
{[%clk 0:03:00.9]} 9. Nbd2 {[%clk 0:02:52.8]} 9... Nc5 {[%clk 0:02:59.2]} 10.
Ba2 {[%clk 0:02:52.6]} 10... h6 {[%clk 0:02:58.1]} 11. Nf1 {[%clk 0:02:50.6]}
11... Re8 {[%clk 0:02:58.2]} 12. Ng3 {[%clk 0:02:48.7]} 12... Bf8 {[%clk
0:02:58.5]} 13. c3 {[%clk 0:02:45.7]} 13... Be6 {[%clk 0:02:55]} 14. Bxe6 {[%clk
0:02:38.7]} 14... Nxe6 {[%clk 0:02:55.9]} 15. d4 {[%clk 0:02:38.1]} 15... Qc7
{[%clk 0:02:53.2]} 16. a4 {[%clk 0:02:34.4]} 16... g6 {[%clk 0:02:51.7]} 17. h3
{[%clk 0:02:32.5]} 17... Bg7 {[%clk 0:02:50.1]} 18. Be3 {[%clk 0:02:33]} 18...
Rad8 {[%clk 0:02:47.3]} 19. Qd2 {[%clk 0:02:32.8]} 19... d5 {[%clk 0:02:46.5]}
20. Nxe5 {[%clk 0:02:27.5]} 20... Nxe4 {[%clk 0:02:41.9]} 21. Nxe4 {[%clk
0:02:27.1]} 21... dxe4 {[%clk 0:02:41.8]} 22. Nc4 {[%clk 0:02:17.2]} 22... g5
{[%clk 0:02:28.3]} 23. Qc2 {[%clk 0:02:07.6]} 23... f5 {[%clk 0:02:26.5]} 24.
Qb3 {[%clk 0:02:08]} 24... Kh7 {[%clk 0:02:22.4]} 25. Qb6 {[%clk 0:02:01.1]}
25... Qf7 {[%clk 0:02:15.7]} 26. Nxa5 {[%clk 0:01:59.1]} 26... f4 {[%clk
0:02:13.2]} 27. Bc1 {[%clk 0:01:55.6]} 27... f3 {[%clk 0:02:06.4]} 28. Qxb7
{[%clk 0:01:39]} 28... Qh5 {[%clk 0:01:53.8]} 29. Qxc6 {[%clk 0:01:24.3]} 29...
Nf4 {[%clk 0:01:28.5]} 30. Bxf4 {[%clk 0:01:19.1]} 30... gxf4 {[%clk 0:01:29.4]}
31. Qb5 {[%clk 0:01:06.9]} 31... Rd5 {[%clk 0:01:22.2]} 32. Qb3 {[%clk
0:00:38.8]} 32... Rxa5 {[%clk 0:01:17.1]} 33. d5 {[%clk 0:00:32]} 33... Qg6
{[%clk 0:01:11]} 34. g3 {[%clk 0:00:25.7]} 34... fxg3 {[%clk 0:01:09.7]} 35. Qc4
{[%clk 0:00:14.6]} 35... e3 {[%clk 0:00:58.5]} 36. Rxe3 {[%clk 0:00:12.2]} 36...
gxf2+ {[%clk 0:00:55.5]} 37. Kxf2 {[%clk 0:00:12.4]} 37... Qg2+ {[%clk
0:00:54.7]} 38. Ke1 {[%clk 0:00:12.4]} 38... Rxe3+ {[%clk 0:00:55.1]} 39. Kd1
{[%clk 0:00:12.7]} 39... Qe2+ {[%clk 0:00:48.6]} 40. Qxe2 {[%clk 0:00:12.2]}
40... fxe2+ {[%clk 0:00:49.5]} 41. Kd2 {[%clk 0:00:12.5]} 41... e1=Q+ {[%clk
0:00:48.8]} 42. Rxe1 {[%clk 0:00:11.8]} 42... Rxe1 {[%clk 0:00:48.9]} 43. Kxe1
{[%clk 0:00:12.1]} 43... Rxd5 {[%clk 0:00:48.3]} 0-1

[Event "*** SCC Grand Prix: Titled Tuesday Blitz"]
[Site "Chess.com"]
[Date "2020.08.11"]
[Round "10"]
[White "TST2014"]
[Black "DinaBelenkaya"]
[Result "1-0"]
[WhiteElo "2507"]
[BlackElo "2345"]
[TimeControl "180+1"]
[EndTime "11:57:38 PDT"]
[Termination "TST2014 won by checkmate"]

1. d4 {[%clk 0:03:00.5]} 1... Nf6 {[%clk 0:02:59]} 2. c4 {[%clk 0:02:59.9]} 2...
c5 {[%clk 0:02:59.2]} 3. d5 {[%clk 0:02:59.9]} 3... e5 {[%clk 0:02:59.5]} 4. Nc3
{[%clk 0:02:59.5]} 4... d6 {[%clk 0:02:59.8]} 5. e4 {[%clk 0:02:59.6]} 5... Be7
{[%clk 0:02:59.8]} 6. g3 {[%clk 0:02:58.6]} 6... a6 {[%clk 0:02:56]} 7. Bg2
{[%clk 0:02:57.8]} 7... b5 {[%clk 0:02:53.4]} 8. cxb5 {[%clk 0:02:56.4]} 8...
axb5 {[%clk 0:02:54.3]} 9. Nxb5 {[%clk 0:02:56.6]} 9... Ba6 {[%clk 0:02:54.9]}
10. Nc3 {[%clk 0:02:52.4]} 10... h5 {[%clk 0:02:53.6]} 11. h4 {[%clk 0:02:51.4]}
11... Nbd7 {[%clk 0:02:45.7]} 12. Nge2 {[%clk 0:02:49.8]} 12... Nb6 {[%clk
0:02:35.2]} 13. O-O {[%clk 0:02:47.9]} 13... Qd7 {[%clk 0:02:29.7]} 14. Bg5
{[%clk 0:02:41.5]} 14... Nh7 {[%clk 0:02:15]} 15. Bxe7 {[%clk 0:02:29.1]} 15...
Qxe7 {[%clk 0:02:15.9]} 16. a4 {[%clk 0:02:29.4]} 16... g5 {[%clk 0:01:49]} 17.
a5 {[%clk 0:02:24]} 17... Nd7 {[%clk 0:01:44]} 18. hxg5 {[%clk 0:02:22.2]} 18...
Qxg5 {[%clk 0:01:42.3]} 19. f4 {[%clk 0:02:17.7]} 19... exf4 {[%clk 0:01:38.7]}
20. gxf4 {[%clk 0:02:18.6]} 20... Qg4 {[%clk 0:01:37.3]} 21. Kh2 {[%clk
0:02:03]} 21... Nhf6 {[%clk 0:01:08.2]} 22. Qe1 {[%clk 0:01:52.5]} 22... h4
{[%clk 0:01:04.4]} 23. Bh3 {[%clk 0:01:51.7]} 23... Qh5 {[%clk 0:00:58.4]} 24.
Rg1 {[%clk 0:01:44.1]} 24... O-O-O {[%clk 0:00:42.9]} 25. e5 {[%clk 0:01:29.6]}
25... dxe5 {[%clk 0:00:41.9]} 26. Rg5 {[%clk 0:01:29]} 26... Qf3 {[%clk
0:00:37.1]} 27. fxe5 {[%clk 0:01:09.2]} 27... Ne4 {[%clk 0:00:34.9]} 28. Nxe4
{[%clk 0:00:56.3]} 28... Qxe4 {[%clk 0:00:35.8]} 29. e6 {[%clk 0:00:38.6]} 29...
Bxe2 {[%clk 0:00:20.3]} 30. exd7+ {[%clk 0:00:37.7]} 30... Kb8 {[%clk
0:00:20.7]} 31. Qf2 {[%clk 0:00:31.3]} 31... Rh6 {[%clk 0:00:16.8]} 32. a6
{[%clk 0:00:29.1]} 32... Bb5 {[%clk 0:00:06.9]} 33. a7+ {[%clk 0:00:28.9]} 33...
Ka8 {[%clk 0:00:07.1]} 34. Bg2 {[%clk 0:00:29.3]} 34... Qa4 {[%clk 0:00:01.4]}
35. d6+ {[%clk 0:00:29.4]} 35... Bc6 {[%clk 0:00:01.8]} 36. Rxa4 {[%clk
0:00:29.5]} 36... Bxg2 {[%clk 0:00:02]} 37. Qxg2# {[%clk 0:00:29.7]} 1-0

[Event "*** SCC Grand Prix: Titled Tuesday Blitz"]
[Site "Chess.com"]
[Date "2020.08.11"]
[Round "10"]
[White "wannabe2700"]
[Black "chigorin28"]
[Result "0-1"]
[WhiteElo "2667"]
[BlackElo "2466"]
[TimeControl "180+1"]
[EndTime "11:57:40 PDT"]
[Termination "chigorin28 won on time"]

1. e4 {[%clk 0:02:54.8]} 1... c6 {[%clk 0:02:58.8]} 2. d4 {[%clk 0:02:54.7]}
2... d5 {[%clk 0:02:59.2]} 3. e5 {[%clk 0:02:53]} 3... Bf5 {[%clk 0:02:59.2]} 4.
Nf3 {[%clk 0:02:52.8]} 4... e6 {[%clk 0:02:54.2]} 5. Be2 {[%clk 0:02:53.1]} 5...
c5 {[%clk 0:02:53]} 6. Be3 {[%clk 0:02:51.4]} 6... Nc6 {[%clk 0:02:49.8]} 7.
dxc5 {[%clk 0:02:43.6]} 7... Qc7 {[%clk 0:02:44]} 8. c4 {[%clk 0:02:30.9]} 8...
O-O-O {[%clk 0:02:42]} 9. Qa4 {[%clk 0:02:17.4]} 9... d4 {[%clk 0:02:38.2]} 10.
Bg5 {[%clk 0:02:13.1]} 10... f6 {[%clk 0:02:33.6]} 11. exf6 {[%clk 0:02:13.1]}
11... gxf6 {[%clk 0:02:34.1]} 12. Bh4 {[%clk 0:02:06.5]} 12... d3 {[%clk
0:02:03.3]} 13. Bd1 {[%clk 0:02:05.8]} 13... d2+ {[%clk 0:01:39.3]} 14. Nbxd2
{[%clk 0:02:04.4]} 14... Rxd2 {[%clk 0:01:35.5]} 15. Kxd2 {[%clk 0:01:41.2]}
15... Qf4+ {[%clk 0:01:21.4]} 16. Kc3 {[%clk 0:01:22.9]} 16... Bxc5 {[%clk
0:01:08.8]} 17. a3 {[%clk 0:01:12.9]} 17... Nge7 {[%clk 0:00:40.4]} 18. Bc2
{[%clk 0:01:00.4]} 18... e5 {[%clk 0:00:25.6]} 19. Bg3 {[%clk 0:00:43.1]} 19...
Qg4 {[%clk 0:00:21.5]} 20. Rad1 {[%clk 0:00:38.1]} 20... e4 {[%clk 0:00:15.3]}
21. Nh4 {[%clk 0:00:15.7]} 21... Be6 {[%clk 0:00:10.3]} 22. Qb5 {[%clk
0:00:07.9]} 22... Bb6 {[%clk 0:00:05.4]} 23. Kb3 {[%clk 0:00:03.2]} 23... Nd4+
{[%clk 0:00:03.1]} 24. Rxd4 {[%clk 0:00:03]} 24... Bxd4 {[%clk 0:00:04]} 25. Rd1
{[%clk 0:00:02.5]} 25... Bb6 {[%clk 0:00:04.1]} 26. Ka2 {[%clk 0:00:02.6]} 26...
Qe2 {[%clk 0:00:04.2]} 27. Bb3 {[%clk 0:00:01.3]} 27... Nc6 {[%clk 0:00:04.3]}
28. c5 {[%clk 0:00:01.1]} 28... Nd4 {[%clk 0:00:04]} 0-1

[Event "*** SCC Grand Prix: Titled Tuesday Blitz"]
[Site "Chess.com"]
[Date "2020.08.11"]
[Round "10"]
[White "czasnaszachy"]
[Black "maxip32"]
[Result "1/2-1/2"]
[WhiteElo "2227"]
[BlackElo "2428"]
[TimeControl "180+1"]
[EndTime "11:57:40 PDT"]
[Termination "Game drawn by agreement"]

1. d4 {[%clk 0:03:00.9]} 1... g6 {[%clk 0:02:58.9]} 2. c4 {[%clk 0:03:00.6]}
2... Bg7 {[%clk 0:02:59.2]} 3. Nc3 {[%clk 0:03:00.4]} 3... c5 {[%clk 0:02:59.6]}
4. d5 {[%clk 0:03:00.4]} 4... Bxc3+ {[%clk 0:03:00.4]} 5. bxc3 {[%clk
0:03:00.2]} 5... f5 {[%clk 0:03:01.1]} 6. e4 {[%clk 0:03:00.5]} 6... fxe4 {[%clk
0:03:00.8]} 7. h4 {[%clk 0:02:53.3]} 7... Nf6 {[%clk 0:02:53.9]} 8. Ne2 {[%clk
0:02:52.2]} 8... d6 {[%clk 0:02:49]} 9. Ng3 {[%clk 0:02:52]} 9... Nbd7 {[%clk
0:02:41.4]} 10. h5 {[%clk 0:02:51.6]} 10... Rg8 {[%clk 0:02:38.4]} 11. hxg6
{[%clk 0:02:45.7]} 11... hxg6 {[%clk 0:02:39.3]} 12. Qc2 {[%clk 0:02:39.9]}
12... Ne5 {[%clk 0:02:30.6]} 13. Bf4 {[%clk 0:02:31.3]} 13... Nf7 {[%clk
0:02:21]} 14. Nxe4 {[%clk 0:02:18.9]} 14... Nxe4 {[%clk 0:02:12.7]} 15. Qxe4
{[%clk 0:02:18.5]} 15... Bf5 {[%clk 0:02:13.1]} 16. Qe3 {[%clk 0:02:14.3]} 16...
Qd7 {[%clk 0:01:50.3]} 17. Rh7 {[%clk 0:01:57.7]} 17... g5 {[%clk 0:01:46.8]}
18. Bg3 {[%clk 0:01:56.7]} 18... Bxh7 {[%clk 0:01:44.3]} 19. Be2 {[%clk
0:01:48.2]} 19... O-O-O {[%clk 0:01:40.7]} 20. a4 {[%clk 0:01:47.1]} 20... Bf5
{[%clk 0:01:38]} 21. a5 {[%clk 0:01:46.9]} 21... a6 {[%clk 0:01:38.1]} 22. Qd2
{[%clk 0:01:43.9]} 22... Rh8 {[%clk 0:01:36]} 23. Qb2 {[%clk 0:01:38.8]} 23...
Ne5 {[%clk 0:01:35.6]} 24. Qb6 {[%clk 0:01:36.5]} 24... Kb8 {[%clk 0:01:30.6]}
25. Kd2 {[%clk 0:01:29.9]} 25... Bg6 {[%clk 0:01:08.8]} 26. Bxe5 {[%clk
0:01:27.3]} 26... dxe5 {[%clk 0:01:01.2]} 27. Qxg6 {[%clk 0:01:27.1]} 27... Rhg8
{[%clk 0:01:00.9]} 28. Qe4 {[%clk 0:01:24.6]} 28... Qd6 {[%clk 0:00:59]} 29. Bg4
{[%clk 0:01:23.6]} 29... Rdf8 {[%clk 0:00:57.3]} 30. f3 {[%clk 0:01:19.9]} 30...
Rf4 {[%clk 0:00:56.7]} 31. Qh7 {[%clk 0:01:15.5]} 31... Rgf8 {[%clk 0:00:55.7]}
32. Rb1 {[%clk 0:01:01.1]} 32... e4 {[%clk 0:00:47.9]} 33. Rb6 {[%clk
0:00:55.2]} 33... Qe5 {[%clk 0:00:41.4]} 34. Qh6 {[%clk 0:00:41.5]} 34... e3+
{[%clk 0:00:30.4]} 35. Ke2 {[%clk 0:00:34.6]} 35... Qxc3 {[%clk 0:00:23.7]} 36.
Rxb7+ {[%clk 0:00:33.3]} 36... Kxb7 {[%clk 0:00:19.5]} 37. Qc6+ {[%clk
0:00:31.4]} 37... Kb8 {[%clk 0:00:17.8]} 38. Qb6+ {[%clk 0:00:30.6]} 38... Ka8
{[%clk 0:00:18]} 39. Qxa6+ {[%clk 0:00:30.6]} 39... Kb8 {[%clk 0:00:18.3]} 40.
Qb6+ {[%clk 0:00:30.6]} 40... Ka8 {[%clk 0:00:19]} 41. Qa6+ {[%clk 0:00:23]}
41... Kb8 {[%clk 0:00:19.1]} 42. Qb6+ {[%clk 0:00:23.2]} 42... Ka8 {[%clk
0:00:17.4]} 1/2-1/2

[Event "*** SCC Grand Prix: Titled Tuesday Blitz"]
[Site "Chess.com"]
[Date "2020.08.11"]
[Round "10"]
[White "kuban1991"]
[Black "GM_dmitrij"]
[Result "0-1"]
[WhiteElo "2749"]
[BlackElo "2923"]
[TimeControl "180+1"]
[EndTime "11:57:45 PDT"]
[Termination "GM_dmitrij won by resignation"]

1. Nf3 {[%clk 0:03:00]} 1... Nf6 {[%clk 0:02:59.6]} 2. g3 {[%clk 0:03:00]} 2...
g6 {[%clk 0:03:00.5]} 3. Bg2 {[%clk 0:03:00]} 3... Bg7 {[%clk 0:03:01.4]} 4. O-O
{[%clk 0:03:00.9]} 4... O-O {[%clk 0:03:02.3]} 5. c4 {[%clk 0:03:01.6]} 5... Nc6
{[%clk 0:03:02.7]} 6. Nc3 {[%clk 0:03:01.7]} 6... d5 {[%clk 0:03:03.2]} 7. d3
{[%clk 0:02:55]} 7... d4 {[%clk 0:02:59]} 8. Na4 {[%clk 0:02:49.1]} 8... e5
{[%clk 0:02:56.7]} 9. a3 {[%clk 0:02:48.9]} 9... a5 {[%clk 0:02:56.1]} 10. b4
{[%clk 0:02:44.6]} 10... axb4 {[%clk 0:02:57]} 11. axb4 {[%clk 0:02:45.5]} 11...
e4 {[%clk 0:02:56.4]} 12. Ng5 {[%clk 0:02:21.9]} 12... exd3 {[%clk 0:02:54.9]}
13. exd3 {[%clk 0:02:22.8]} 13... Bg4 {[%clk 0:02:40.9]} 14. Qb3 {[%clk
0:02:20.5]} 14... h6 {[%clk 0:02:40.4]} 15. Ne4 {[%clk 0:02:19.2]} 15... Ne5
{[%clk 0:02:04.1]} 16. f4 {[%clk 0:02:16.8]} 16... Ned7 {[%clk 0:02:04]} 17. Bb2
{[%clk 0:02:12.7]} 17... Nxe4 {[%clk 0:02:00.9]} 18. dxe4 {[%clk 0:02:12.4]}
18... c6 {[%clk 0:01:37.1]} 19. h3 {[%clk 0:02:11.7]} 19... Be2 {[%clk
0:01:25.8]} 20. Rfe1 {[%clk 0:02:07.3]} 20... b5 {[%clk 0:00:58.2]} 21. Rxe2
{[%clk 0:01:48.9]} 21... bxa4 {[%clk 0:00:58.4]} 22. Rxa4 {[%clk 0:01:49.8]}
22... Rxa4 {[%clk 0:00:59]} 23. Qxa4 {[%clk 0:01:50.4]} 23... d3 {[%clk
0:00:59.9]} 24. Rd2 {[%clk 0:01:44.4]} 24... Bxb2 {[%clk 0:00:59.9]} 25. Rxb2
{[%clk 0:01:45.3]} 25... Nb6 {[%clk 0:01:00.2]} 26. Qxc6 {[%clk 0:01:02.8]}
26... Qd4+ {[%clk 0:00:59.4]} 27. Rf2 {[%clk 0:01:03.4]} 27... d2 {[%clk
0:00:38.8]} 28. Bf3 {[%clk 0:01:02.2]} 28... Nxc4 {[%clk 0:00:25.4]} 29. Qd5
{[%clk 0:00:57.7]} 29... Qxd5 {[%clk 0:00:20.1]} 30. exd5 {[%clk 0:00:58.6]}
30... Re8 {[%clk 0:00:17.9]} 31. d6 {[%clk 0:00:45.7]} 31... Re1+ {[%clk
0:00:14.7]} 32. Rf1 {[%clk 0:00:46.1]} 32... Ne3 {[%clk 0:00:09.7]} 33. Kf2
{[%clk 0:00:38.4]} 33... Rxf1+ {[%clk 0:00:09]} 34. Kxe3 {[%clk 0:00:37.5]}
34... Rxf3+ {[%clk 0:00:08.4]} 35. Kxd2 {[%clk 0:00:38.1]} 35... Kf8 {[%clk
0:00:09]} 36. Ke2 {[%clk 0:00:36.8]} 36... Rb3 {[%clk 0:00:09]} 37. d7 {[%clk
0:00:37.7]} 37... Ke7 {[%clk 0:00:09.9]} 0-1

[Event "*** SCC Grand Prix: Titled Tuesday Blitz"]
[Site "Chess.com"]
[Date "2020.08.11"]
[Round "10"]
[White "KaspMagAlpha"]
[Black "Sn00pPawn"]
[Result "1-0"]
[WhiteElo "2182"]
[BlackElo "2007"]
[TimeControl "180+1"]
[EndTime "11:57:46 PDT"]
[Termination "KaspMagAlpha won on time"]

1. d4 {[%clk 0:03:00.9]} 1... Nf6 {[%clk 0:02:50.8]} 2. c4 {[%clk 0:03:00.6]}
2... g6 {[%clk 0:02:37.6]} 3. g3 {[%clk 0:02:59.7]} 3... Bg7 {[%clk 0:02:37.3]}
4. Bg2 {[%clk 0:02:59.4]} 4... O-O {[%clk 0:02:37]} 5. Nf3 {[%clk 0:02:59.1]}
5... d6 {[%clk 0:02:36.1]} 6. O-O {[%clk 0:02:58.4]} 6... Nc6 {[%clk 0:02:34.9]}
7. Nc3 {[%clk 0:02:47.9]} 7... a6 {[%clk 0:02:32.3]} 8. Qd3 {[%clk 0:02:47.4]}
8... Rb8 {[%clk 0:02:21.9]} 9. d5 {[%clk 0:02:37.9]} 9... Ne5 {[%clk 0:01:59.2]}
10. Nxe5 {[%clk 0:02:34.2]} 10... dxe5 {[%clk 0:01:58]} 11. h3 {[%clk
0:02:20.3]} 11... e6 {[%clk 0:01:30.6]} 12. Bg5 {[%clk 0:02:16.9]} 12... h6
{[%clk 0:01:26.9]} 13. Be3 {[%clk 0:02:02.6]} 13... exd5 {[%clk 0:00:51.8]} 14.
cxd5 {[%clk 0:02:00.2]} 14... e4 {[%clk 0:00:48.1]} 15. Qc4 {[%clk 0:01:56.9]}
15... b5 {[%clk 0:00:43.5]} 16. Qb3 {[%clk 0:01:56]} 16... Bb7 {[%clk
0:00:36.1]} 17. Rad1 {[%clk 0:01:48.4]} 17... Qe7 {[%clk 0:00:32.3]} 18. a4
{[%clk 0:01:38.9]} 18... b4 {[%clk 0:00:31.2]} 19. Na2 {[%clk 0:01:23.7]} 19...
a5 {[%clk 0:00:27.8]} 20. Qc4 {[%clk 0:01:15.7]} 20... Rfd8 {[%clk 0:00:25.7]}
21. Bc5 {[%clk 0:00:53.7]} 21... Qe5 {[%clk 0:00:22]} 22. b3 {[%clk 0:00:15.4]}
22... Bxd5 {[%clk 0:00:16.2]} 23. Qc2 {[%clk 0:00:14.9]} 23... Qe6 {[%clk
0:00:14.9]} 24. Nc1 {[%clk 0:00:14.5]} 24... Nd7 {[%clk 0:00:11.9]} 25. Be3
{[%clk 0:00:14.1]} 25... c6 {[%clk 0:00:09.9]} 26. Qb1 {[%clk 0:00:14]} 26...
Nf6 {[%clk 0:00:08.5]} 27. Rd2 {[%clk 0:00:14.2]} 27... Nh7 {[%clk 0:00:03.3]}
28. Rfd1 {[%clk 0:00:14.6]} 28... Ng5 {[%clk 0:00:03.2]} 29. Bf4 {[%clk
0:00:14.6]} 29... Rbc8 {[%clk 0:00:02.3]} 30. h4 {[%clk 0:00:14.9]} 30... Nh3+
{[%clk 0:00:02.5]} 31. Kh2 {[%clk 0:00:14.9]} 31... Nxf4 {[%clk 0:00:01.4]} 32.
gxf4 {[%clk 0:00:14.3]} 32... Qf6 {[%clk 0:00:01.8]} 33. e3 {[%clk 0:00:14.6]}
33... Qxh4+ {[%clk 0:00:01.7]} 34. Kg1 {[%clk 0:00:15.1]} 1-0

[Event "*** SCC Grand Prix: Titled Tuesday Blitz"]
[Site "Chess.com"]
[Date "2020.08.11"]
[Round "10"]
[White "sergivila"]
[Black "pedromartinez91"]
[Result "0-1"]
[WhiteElo "2439"]
[BlackElo "2570"]
[TimeControl "180+1"]
[EndTime "11:57:47 PDT"]
[Termination "pedromartinez91 won by resignation"]

1. e4 {[%clk 0:03:00.9]} 1... d6 {[%clk 0:02:52.6]} 2. d4 {[%clk 0:02:59.4]}
2... Nd7 {[%clk 0:02:52.7]} 3. Nc3 {[%clk 0:02:58.3]} 3... e6 {[%clk 0:02:51.9]}
4. f4 {[%clk 0:02:55.4]} 4... g6 {[%clk 0:02:49.7]} 5. Nf3 {[%clk 0:02:55.4]}
5... Bg7 {[%clk 0:02:50.2]} 6. Be3 {[%clk 0:02:55.4]} 6... Ne7 {[%clk
0:02:50.7]} 7. Qd2 {[%clk 0:02:55.4]} 7... b6 {[%clk 0:02:47.8]} 8. O-O-O {[%clk
0:02:54.6]} 8... Bb7 {[%clk 0:02:47.7]} 9. Be2 {[%clk 0:02:53.2]} 9... Nf6
{[%clk 0:02:41.2]} 10. Bd3 {[%clk 0:02:51.9]} 10... a6 {[%clk 0:02:25.7]} 11.
Kb1 {[%clk 0:02:36.6]} 11... Qd7 {[%clk 0:02:24.9]} 12. Qe2 {[%clk 0:02:31.3]}
12... b5 {[%clk 0:02:22.8]} 13. e5 {[%clk 0:02:30.4]} 13... Nfd5 {[%clk
0:02:20.5]} 14. Ne4 {[%clk 0:02:26.4]} 14... Nxe3 {[%clk 0:02:17.2]} 15. Qxe3
{[%clk 0:02:27.3]} 15... Nd5 {[%clk 0:02:05.5]} 16. Qd2 {[%clk 0:02:26.7]} 16...
Nb6 {[%clk 0:02:00.2]} 17. g4 {[%clk 0:02:17.9]} 17... Nc4 {[%clk 0:01:52.9]}
18. Qe2 {[%clk 0:02:16.7]} 18... O-O-O {[%clk 0:01:07.5]} 19. Bxc4 {[%clk
0:02:14.6]} 19... bxc4 {[%clk 0:01:08.3]} 20. exd6 {[%clk 0:02:12.9]} 20... cxd6
{[%clk 0:00:57.9]} 21. Qxc4+ {[%clk 0:02:12.9]} 21... Kb8 {[%clk 0:00:58.4]} 22.
Qe2 {[%clk 0:02:11.6]} 22... Rc8 {[%clk 0:00:55.7]} 23. Rhe1 {[%clk 0:02:07.5]}
23... Qc6 {[%clk 0:00:49.8]} 24. Rd3 {[%clk 0:02:00.7]} 24... Ka8 {[%clk
0:00:44.8]} 25. Rb3 {[%clk 0:01:48.6]} 25... Rc7 {[%clk 0:00:41.4]} 26. Rc3
{[%clk 0:01:03.1]} 26... Qb6 {[%clk 0:00:36.4]} 27. Rxc7 {[%clk 0:01:02.2]}
27... Qxc7 {[%clk 0:00:37.3]} 28. Ned2 {[%clk 0:00:59.1]} 28... h5 {[%clk
0:00:36.2]} 29. g5 {[%clk 0:00:56.6]} 29... Rc8 {[%clk 0:00:35.7]} 30. Nb3
{[%clk 0:00:55.8]} 30... Qb6 {[%clk 0:00:26.9]} 31. Qe3 {[%clk 0:00:48.5]} 31...
a5 {[%clk 0:00:26.5]} 32. Nfd2 {[%clk 0:00:44.3]} 32... a4 {[%clk 0:00:25]} 33.
Nc1 {[%clk 0:00:44.6]} 33... Bxd4 {[%clk 0:00:23]} 34. Qa3 {[%clk 0:00:43.7]}
34... Ba6 {[%clk 0:00:13.1]} 35. Ne4 {[%clk 0:00:39.3]} 35... Qc6 {[%clk
0:00:08.7]} 36. c3 {[%clk 0:00:37.6]} 36... Ba7 {[%clk 0:00:06.7]} 37. Nxd6
{[%clk 0:00:36.1]} 37... Bc5 {[%clk 0:00:05.9]} 0-1

[Event "*** SCC Grand Prix: Titled Tuesday Blitz"]
[Site "Chess.com"]
[Date "2020.08.11"]
[Round "10"]
[White "TargetA"]
[Black "NoboaKevin1999"]
[Result "0-1"]
[WhiteElo "2565"]
[BlackElo "2433"]
[TimeControl "180+1"]
[EndTime "11:57:48 PDT"]
[Termination "NoboaKevin1999 won by resignation"]

1. e4 {[%clk 0:02:31.2]} 1... e6 {[%clk 0:02:54]} 2. d4 {[%clk 0:02:31.6]} 2...
d5 {[%clk 0:02:53.9]} 3. Nc3 {[%clk 0:02:32.2]} 3... Nf6 {[%clk 0:02:52.3]} 4.
e5 {[%clk 0:02:31.8]} 4... Nfd7 {[%clk 0:02:49.7]} 5. f4 {[%clk 0:02:31.2]} 5...
c5 {[%clk 0:02:45.7]} 6. Nf3 {[%clk 0:02:32.1]} 6... Be7 {[%clk 0:02:33.9]} 7.
Bd3 {[%clk 0:02:26.7]} 7... Nc6 {[%clk 0:02:27.9]} 8. Be3 {[%clk 0:02:25.7]}
8... a6 {[%clk 0:02:24.1]} 9. O-O {[%clk 0:02:18.5]} 9... b5 {[%clk 0:02:18.4]}
10. dxc5 {[%clk 0:02:12.5]} 10... Nxc5 {[%clk 0:02:16.6]} 11. a4 {[%clk
0:02:09.2]} 11... b4 {[%clk 0:02:15.9]} 12. Ne2 {[%clk 0:02:09.5]} 12... Qc7
{[%clk 0:02:11.9]} 13. Ned4 {[%clk 0:02:06]} 13... Nxd4 {[%clk 0:02:11]} 14.
Nxd4 {[%clk 0:02:05.6]} 14... O-O {[%clk 0:02:09.7]} 15. Bxh7+ {[%clk
0:01:56.5]} 15... Kxh7 {[%clk 0:02:06.3]} 16. Qh5+ {[%clk 0:01:57.4]} 16... Kg8
{[%clk 0:02:06.1]} 17. Rf3 {[%clk 0:01:57.5]} 17... f5 {[%clk 0:01:47.4]} 18.
Rh3 {[%clk 0:01:37.5]} 18... Ne4 {[%clk 0:01:44.7]} 19. Qg6 {[%clk 0:01:22.9]}
19... Bc5 {[%clk 0:01:36.2]} 20. Kh1 {[%clk 0:00:45.7]} 20... Bxd4 {[%clk
0:01:33.1]} 21. Bxd4 {[%clk 0:00:45.2]} 21... Qd7 {[%clk 0:01:26.5]} 22. Rg1
{[%clk 0:00:34.8]} 22... Qe8 {[%clk 0:01:24.6]} 23. Qh7+ {[%clk 0:00:31.9]}
23... Kf7 {[%clk 0:01:16.5]} 24. g4 {[%clk 0:00:32.4]} 24... Ke7 {[%clk
0:01:09.2]} 25. gxf5 {[%clk 0:00:31.5]} 25... Kd8 {[%clk 0:01:05.6]} 26. Rxg7
{[%clk 0:00:29.1]} 26... Bd7 {[%clk 0:00:51.8]} 27. f6 {[%clk 0:00:17.2]} 27...
Kc8 {[%clk 0:00:41.6]} 28. Bb6 {[%clk 0:00:13.6]} 28... Rb8 {[%clk 0:00:33.1]}
29. a5 {[%clk 0:00:12.6]} 29... Rxb6 {[%clk 0:00:28.5]} 30. axb6 {[%clk
0:00:13.5]} 30... Nf2+ {[%clk 0:00:28.9]} 31. Kg2 {[%clk 0:00:13.8]} 31... Nxh3
{[%clk 0:00:29.1]} 32. Kxh3 {[%clk 0:00:11.8]} 32... Rh8 {[%clk 0:00:27.1]} 33.
b7+ {[%clk 0:00:10.9]} 33... Kxb7 {[%clk 0:00:26.7]} 34. Rxd7+ {[%clk
0:00:10.7]} 34... Kb6 {[%clk 0:00:25.4]} 35. Kg4 {[%clk 0:00:06]} 35... Rxh7
{[%clk 0:00:24.8]} 36. Rxh7 {[%clk 0:00:06.9]} 36... Qg6+ {[%clk 0:00:24.9]} 37.
Kf3 {[%clk 0:00:05.7]} 37... Qxh7 {[%clk 0:00:24.5]} 0-1